bitfinex-derivatives/quotes_ETHF0:USTF0_20240907
["timestamp","ask_amount","ask_price","bid_price","bid_amount"]
[1725732781290,6.2504,2277.0,2276.9,0.43921]
[1725732781486,2.06482933,2277.0,2276.9,0.43921]
[1725732781686,6.45682933,2277.0,2276.9,0.43921]
[1725732781891,2.06482933,2277.0,2276.9,0.43921]
[1725732782193,0.20642933,2277.0,2276.9,0.43921]
[1725732785196,0.20642933,2277.0,2276.9,5.92924]
[1725732785397,1.8304,2277.4,2277.3,0.43913]
[1725732785802,6.2216,2277.4,2277.3,0.43913]
[1725732786796,6.66072,2277.4,2277.2,0.43915]
[1725732787094,0.43918,2277.1,2276.9,0.4392]
[1725732787298,2.65921331,2277.0,2276.8,0.43922]
[1725732787491,2.11441331,2276.9,2276.8,0.43922]
[1725732788297,0.43924,2276.8,2276.7,0.43925]
[1725732788499,9.55411331,2276.8,2276.7,0.43925]
[1725732788699,9.99334331,2276.8,2276.6,0.43926]
[1725732788894,0.20638517,2276.7,2276.6,0.43926]
[1725732789298,4.59918517,2276.7,2276.6,0.43926]
[1725732789805,5.03843517,2276.7,2276.5,0.43928]
[1725732790097,0.4393,2276.5,2276.3,0.43932]
[1725732790297,2.05258517,2276.4,2275.9,7.1764]
[1725732790607,0.20638517,2276.3,2276.2,0.43934]
[1725732790790,3.68572517,2276.3,2275.9,8.0837]
[1725732790990,3.04,2276.1,2275.9,8.0837]
[1725732791205,0.20638517,2276.0,2275.9,8.5231]
[1725732791402,0.20638517,2276.0,2275.9,4.3541]
[1725732792101,3.41420703,2276.2,2276.0,0.43938]
[1725732792295,0.20640851,2276.1,2275.9,3.9147]
[1725732792499,1.8462,2276.4,2275.9,3.9147]
[1725732792794,0.20640325,2276.3,2275.9,3.9147]
[1725732793000,0.20640325,2276.2,2275.9,3.9147]
[1725732793304,1.8462,2276.4,2276.1,0.43935]
[1725732793505,0.20640409,2276.3,2276.1,0.43935]
[1725732793706,1.8462,2276.4,2276.2,0.43935]
[1725732794007,0.20641133,2276.3,2276.2,0.43935]
[1725732794198,3.2078,2276.5,2276.1,0.43935]
[1725732794405,3.2078,2276.5,2275.9,3.9147]
[1725732794406,0.20639852,2276.4,2275.9,3.9147]
[1725732794605,3.2078,2276.5,2276.4,0.43931]
[1725732794802,3.4141991,2276.5,2276.4,0.43931]
[1725732795903,3.2078,2276.5,2276.4,0.43931]
[1725732796098,3.41419743,2276.5,2276.4,0.43931]
[1725732797012,3.41419743,2276.5,2276.3,0.43932]
[1725732797200,3.2078,2276.5,2276.0,1.8674]
[1725732797406,0.20641537,2276.4,2276.3,0.43933]
[1725732798111,0.20641537,2276.4,2276.3,4.83213]
[1725732798500,3.2078,2276.5,2276.4,0.43931]
[1725732798705,3.41421957,2276.5,2276.4,2.44301]
[1725732799607,3.2078,2276.5,2276.4,2.44301]
[1725732799799,3.41421114,2276.5,2276.4,2.44301]
[1725732800202,0.43921,2276.9,2276.6,0.43926]
[1725732800407,0.20641817,2276.8,2276.6,0.43926]
[1725732800612,0.20641817,2276.7,2276.6,0.43926]
[1725732801612,7.2578,2277.1,2276.8,0.43922]
[1725732801809,0.20640758,2277.0,2276.9,0.43921]
[1725732803024,7.2578,2277.1,2276.9,0.43921]
[1725732803232,0.20639373,2277.0,2276.9,0.43921]
[1725732803819,0.20639373,2277.0,2276.8,0.43923]
[1725732804028,2.14949373,2276.9,2276.8,0.43923]
[1725732804327,2.14949373,2276.9,2276.7,0.43925]
[1725732804328,2.58870373,2276.9,2276.7,0.43925]
[1725732804524,0.20639373,2276.8,2276.7,0.43925]
[1725732805230,0.20639373,2276.8,2276.7,4.83125]
[1725732805531,0.20639995,2276.8,2276.7,4.83125]
[1725732805726,1.9431,2277.3,2276.7,4.83125]
[1725732805727,1.9431,2277.3,2276.7,11.49013]
[1725732805918,0.20639996,2277.2,2277.1,0.43917]
[1725732806118,0.20639996,2277.2,2277.0,0.43918]
[1725732806325,1.9431,2277.3,2277.0,0.43918]
[1725732806326,0.20639996,2277.1,2277.0,0.43918]
[1725732806521,1.9431,2277.3,2277.1,0.43917]
[1725732806726,0.20639699,2277.2,2277.1,0.43917]
[1725732810530,0.20639699,2277.2,2277.1,5.92831]
[1725732810723,6.9621,2277.9,2277.8,0.43904]
[1725732810929,0.20641694,2277.9,2277.8,0.43904]
[1725732812335,0.20641694,2277.9,2277.7,0.43904]
[1725732812531,0.439,2278.0,2277.7,0.43904]
[1725732812737,0.20642923,2277.9,2277.7,0.43904]
[1725732812930,0.439,2278.0,2277.7,0.43904]
[1725732813235,0.20642497,2277.9,2277.7,0.43904]
[1725732813541,0.439,2278.0,2277.7,0.43904]
[1725732813844,0.43907,2277.7,2277.4,4.3375]
[1725732814032,3.7595,2277.6,2277.4,4.3375]
[1725732814230,3.7595,2277.6,2277.5,0.43909]
[1725732816037,3.7595,2277.6,2277.4,3.8984]
[1725732816241,3.7595,2277.6,2277.4,0.4391]
[1725732816439,3.7595,2277.6,2277.5,0.43909]
[1725732817443,2.26431267,2277.8,2277.5,4.3904]
[1725732817647,3.2078,2277.9,2277.8,0.43904]
[1725732821340,3.2078,2277.9,2277.3,3.04]
[1725732821545,1.9372,2277.8,2277.6,0.43907]
[1725732821738,2.37624,2277.8,2277.5,0.43908]
[1725732821937,1.8942,2277.7,2277.2,3.8026]
[1725732822143,1.8942,2277.7,2277.5,0.43909]
[1725732822335,1.8942,2277.7,2277.6,0.43908]
[1725732823134,1.9372,2277.8,2277.7,0.43906]
[1725732823335,1.9372,2277.8,2277.7,2.45796]
[1725732823734,3.2078,2277.9,2277.8,0.43904]
[1725732823939,1.9746,2278.1,2278.0,0.439]
[1725732826346,2.18102256,2278.1,2278.0,0.439]
[1725732827139,7.00961256,2278.1,2277.9,0.43902]
[1725732827449,0.20642256,2278.0,2277.9,0.43902]
[1725732827744,0.20642405,2278.0,2277.9,0.43902]
[1725732828542,1.9746,2278.1,2278.0,0.439]
[1725732828747,5.081,2278.2,2278.1,0.43898]
[1725732829141,5.28740588,2278.2,2278.1,0.43898]
[1725732830238,5.28742941,2278.2,2278.1,0.43898]
[1725732830547,13.15599941,2278.2,2277.9,0.439]
[1725732830847,0.64541941,2278.1,2277.7,2.0189]
[1725732831043,0.20642941,2278.0,2277.9,0.43902]
[1725732831645,0.20642941,2278.1,2277.9,0.43902]
[1725732831849,0.20642941,2278.0,2277.9,0.43902]
[1725732832742,0.20642941,2278.1,2277.9,0.43902]
[1725732833051,0.20642941,2278.0,2277.9,0.43902]
[1725732833548,0.43898,2278.1,2277.9,0.43902]
[1725732833746,12.72058267,2278.2,2278.0,0.439]
[1725732833946,0.43898,2278.1,2277.9,0.43901]
[1725732834147,12.72058267,2278.2,2278.0,0.43899]
[1725732834346,10.45627,2278.2,2278.0,0.43899]
[1725732834548,10.45627,2278.2,2277.7,2.0189]
[1725732834848,0.43898,2278.1,2277.9,0.43901]
[1725732835346,0.43898,2278.1,2278.0,0.439]
[1725732835851,4.82858,2278.1,2278.0,0.439]
[1725732836843,0.43898,2278.1,2278.0,0.439]
[1725732838450,5.081,2278.2,2278.1,0.43898]
[1725732839352,5.28772965,2278.2,2278.1,0.43898]
[1725732839547,5.081,2278.2,2278.1,0.43898]
[1725732841348,1.8732,2278.2,2278.1,0.43898]
[1725732841549,2.07985979,2278.2,2278.1,0.43898]
[1725732842057,0.20665979,2278.2,2278.1,0.43898]
[1725732843656,0.20665979,2278.2,2278.1,4.25358]
[1725732844354,2.26431267,2278.4,2278.3,0.43894]
[1725732844544,2.47093847,2278.4,2278.3,0.43894]
[1725732845748,2.47093847,2278.4,2278.3,1.5363]
[1725732845749,0.2066258,2278.4,2278.3,1.5363]
[1725732846057,0.2066258,2278.4,2278.3,8.9651]
[1725732846352,0.2066258,2278.4,2278.3,1.5363]
[1725732846564,0.2066258,2278.4,2278.3,0.43894]
[1725732846750,0.2066258,2278.4,2278.3,4.82774]
[1725732848253,0.2066258,2278.4,2278.3,0.43894]
[1725732848448,0.2066258,2278.4,2278.1,6.8546]
[1725732848449,0.2066258,2278.4,2277.7,8.47442]
[1725732848649,6.90171664,2278.3,2278.1,0.43897]
[1725732848857,0.2066258,2278.2,2277.8,3.8189]
[1725732849161,2.47293196,2278.2,2278.1,0.43898]
[1725732849366,0.2066258,2278.2,2278.1,0.43898]
[1725732849565,3.03701664,2278.2,2278.1,0.43898]
[1725732850164,2.83039084,2278.2,2278.1,0.43898]
[1725732850354,3.03705571,2278.2,2277.8,3.8189]
[1725732850664,2.26847372,2278.0,2277.9,0.43902]
[1725732850848,2.47513859,2278.0,2277.9,0.43902]
[1725732851053,0.20666487,2278.0,2277.9,0.43902]
[1725732851264,0.20666487,2278.2,2277.8,3.8189]
[1725732851559,0.20666487,2278.2,2278.1,0.43898]
[1725732851952,0.20666057,2278.2,2278.1,5.92604]
[1725732852158,0.20666057,2278.2,2278.1,14.96604]
[1725732852460,0.20666057,2278.2,2278.1,16.0635]
[1725732852760,5.7e-07,2278.2,2278.1,16.0635]
[1725732853062,2.26847372,2278.9,2278.4,1.09728]
[1725732853256,0.20664514,2278.8,2278.7,0.43886]
[1725732853755,0.20664514,2278.8,2278.7,4.82686]
[1725732854363,1.9599,2279.0,2278.9,0.43883]
[1725732854765,2.26847372,2279.2,2279.0,0.43881]
[1725732855060,0.20657017,2279.1,2279.0,0.43881]
[1725732856865,0.20657017,2279.1,2278.8,0.43884]
[1725732856866,0.64537017,2279.1,2278.8,0.43884]
[1725732857073,2.08967017,2279.0,2278.8,0.43884]
[1725732857364,0.20657017,2278.9,2278.8,0.43884]
[1725732857669,1.8831,2279.0,2278.8,0.43884]
[1725732857962,0.20661124,2278.9,2278.8,0.43884]
[1725732860571,0.20661124,2278.9,2278.8,5.04330655]
[1725732860862,0.20661124,2278.9,2278.8,0.65530655]
[1725732862869,0.20661124,2278.9,2278.8,0.43884]
[1725732863269,0.20661124,2278.9,2278.8,0.65624848]
[1725732864162,0.20661124,2278.9,2278.8,0.43884]
[1725732864568,2.26847372,2279.1,2278.9,0.43882]
[1725732864870,0.20669694,2279.0,2278.9,0.43882]
[1725732865458,0.43883,2278.9,2278.6,2.28468]
[1725732865764,0.20669694,2278.8,2278.6,2.28467]
[1725732866064,0.20669694,2278.7,2278.6,2.28467]
[1725732866773,0.20669694,2278.7,2278.6,0.43887]
[1725732869975,3.41449694,2278.7,2278.6,0.43887]
[1725732870173,19.11177066,2278.7,2277.8,4.169]
[1725732870470,3.2078,2278.3,2278.2,0.43895]
[1725732870665,3.41449694,2278.3,2278.2,0.43895]
[1725732871572,6.06625829,2278.9,2278.2,11.48701]
[1725732871763,3.7981,2278.9,2278.8,0.43884]
[1725732873673,3.7981,2278.9,2278.5,1.8747]
[1725732873881,3.2078,2278.7,2278.3,2.0156]
[1725732874179,3.2078,2278.7,2278.5,0.43889]
[1725732875274,3.2078,2278.7,2278.6,0.43888]
[1725732879182,3.2078,2278.7,2278.5,0.43889]
[1725732879379,3.2078,2278.7,2278.4,0.43892]
[1725732879771,3.2078,2278.7,2278.0,3.04]
[1725732879772,3.2078,2278.7,2277.9,4.169]
[1725732880069,3.2078,2278.7,2278.0,0.439]
[1725732880070,0.43894,2278.3,2278.0,0.439]
[1725732880268,0.43899,2278.1,2277.8,4.33413]
[1725732880475,0.43899,2278.1,2277.8,0.43903]
[1725732880476,3.64679,2278.1,2277.8,0.43903]
[1725732880670,5.237,2278.1,2277.6,3.25427096]
[1725732880871,5.237,2278.1,2277.9,0.43901]
[1725732881471,5.237,2278.1,2277.9,0.43902]
[1725732882479,5.237,2278.1,2278.0,0.439]
[1725732882679,3.2078,2278.1,2278.0,0.439]
[1725732883586,3.41440998,2278.1,2278.0,0.439]
[1725732888182,3.41440998,2278.1,2277.9,0.43901]
[1725732888389,0.20660998,2278.0,2277.9,0.43901]
[1725732889875,0.20660998,2278.0,2277.6,3.25427096]
[1725732890286,0.20660998,2278.0,2277.8,0.43903]
[1725732890679,0.20660998,2278.0,2277.5,4.169]
[1725732890889,3.47908,2277.6,2277.5,4.169]
[1725732891081,0.43913,2277.4,2277.2,0.43914]
[1725732891275,0.20660998,2277.3,2277.2,0.43914]
[1725732893281,3.64692,2277.4,2277.2,0.43914]
[1725732893584,0.43916,2277.2,2277.0,0.43918]
[1725732893791,3.2078,2277.1,2277.0,0.43918]
[1725732894083,5.27725861,2277.1,2277.0,0.43918]
[1725732894290,5.0706,2277.1,2277.0,0.43918]
[1725732894494,5.2772591,2277.1,2277.0,0.43918]
[1725732894791,5.0706,2277.1,2277.0,0.43918]
[1725732898289,3.2078,2277.1,2277.0,0.43918]
[1725732898492,3.2078,2277.4,2277.3,0.43913]
[1725732899486,3.9992,2277.5,2277.4,0.43911]
[1725732900892,3.64686,2277.7,2277.6,0.43908]
[1725732900893,3.2078,2277.7,2277.6,0.43908]
[1725732901199,3.41443408,2277.7,2277.6,0.43908]
[1725732901397,7.80483408,2277.7,2277.6,0.43908]
[1725732901583,3.2078,2277.7,2277.6,0.43908]
[1725732901789,7.5982,2277.7,2277.6,0.43908]
[1725732901997,3.2078,2277.7,2277.6,0.43908]
[1725732902489,1.881,2278.0,2277.9,0.43902]
[1725732902695,3.2078,2278.1,2278.0,0.439]
[1725732903098,1.9505,2278.3,2278.2,0.43896]
[1725732903390,2.1571025,2278.3,2278.1,0.43897]
[1725732903596,1.9505,2278.3,2278.1,0.43897]
[1725732903983,1.9505,2278.3,2278.2,0.43896]
[1725732904187,0.20659311,2278.3,2278.2,0.43896]
[1725732904995,5.1006,2278.7,2278.2,4.3896]
[1725732905183,5.1006,2278.7,2278.5,0.43889]
[1725732905184,0.20657152,2278.6,2278.5,0.43889]
[1725732905681,5.1006,2278.7,2278.5,0.43889]
[1725732906083,0.20655931,2278.6,2278.5,0.43889]
[1725732906289,5.1006,2278.7,2278.5,0.43889]
[1725732906487,4.59535549,2278.6,2278.3,2.33233]
[1725732906689,8.1406,2278.7,2278.2,0.43895]
[1725732906895,3.2078,2278.4,2278.3,0.43894]
[1725732907594,3.41434043,2278.4,2278.2,0.43896]
[1725732907792,1.9767,2278.3,2278.2,0.43896]
[1725732908597,1.9767,2278.3,2278.1,0.43897]
[1725732908898,1.9767,2278.3,2278.1,0.43898]
[1725732909486,1.9767,2278.3,2278.2,0.43896]
[1725732910003,2.18325606,2278.3,2278.2,0.43896]
[1725732910794,0.43902,2277.9,2277.6,4.169]
[1725732911000,7.1172,2277.8,2277.6,0.43907]
[1725732911697,7.55624,2277.8,2277.5,0.43908]
[1725732911895,0.20652706,2277.7,2277.6,0.43907]
[1725732912089,7.1172,2277.8,2277.6,0.43907]
[1725732912690,1.09741,2278.2,2277.3,3.7691]
[1725732912691,3.2078,2278.1,2277.9,0.43901]
[1725732912992,0.64549981,2278.0,2277.3,7.90693]
[1725732913197,0.20649981,2277.9,2277.7,0.43904]
[1725732913390,3.2078,2277.8,2277.7,0.43904]
[1725732913796,3.41431473,2277.8,2277.6,0.43906]
[1725732914098,3.2078,2277.8,2277.7,0.43906]
[1725732914392,3.41430921,2277.8,2277.7,0.43906]
[1725732915895,3.2078,2277.8,2277.7,0.43906]
[1725732916100,3.41428889,2277.8,2277.7,0.43906]
[1725732919100,3.2078,2277.8,2277.7,0.43906]
[1725732919601,3.41426913,2277.8,2277.7,0.43906]
[1725732919799,10.84466913,2277.8,2277.1,4.169]
[1725732919989,5.79112913,2277.7,2277.5,0.43909]
[1725732920192,0.20646913,2277.6,2277.4,0.4391]
[1725732920599,0.20646913,2277.6,2277.5,0.43909]
[1725732920791,0.20646913,2277.6,2277.4,0.4391]
[1725732920792,0.64554913,2277.6,2277.4,0.4391]
[1725732920992,0.20646913,2277.5,2277.4,0.4391]
[1725732921791,0.20646913,2277.6,2277.4,0.4391]
[1725732921994,0.20646913,2277.5,2277.4,0.4391]
[1725732922189,0.20646913,2277.6,2277.4,0.4391]
[1725732922398,0.20646913,2277.5,2277.4,0.4391]
[1725732922699,5.1456,2277.7,2277.4,0.4391]
[1725732922700,3.2078,2277.7,2277.6,0.43908]
[1725732922904,3.41447798,2277.7,2277.6,0.43908]
[1725732923797,0.20667798,2277.7,2277.6,4.82948]
[1725732924398,0.20667798,2277.7,2277.6,5.04844607]
[1725732924802,0.20667798,2277.7,2277.6,14.08844607]
[1725732925001,2.83039084,2278.3,2278.0,0.43898]
[1725732925002,0.43894,2278.3,2278.0,0.43898]
[1725732925200,0.20667098,2278.2,2278.1,0.43898]
[1725732925405,0.20667098,2278.2,2278.0,0.43899]
[1725732925594,3.41447098,2278.1,2278.0,0.43899]
[1725732925799,3.41447098,2278.1,2277.9,0.439]
[1725732925998,3.2078,2278.1,2278.0,0.439]
[1725732926405,3.41446867,2278.1,2278.0,0.439]
[1725732927008,3.41447158,2278.1,2278.0,0.439]
[1725732927406,3.41447158,2278.1,2278.0,4.8286]
[1725732927704,0.20667158,2278.1,2278.0,13.8686]
[1725732927911,0.20667158,2278.1,2278.0,7.8686]
[1725732928209,0.20668616,2278.1,2278.0,15.4007]
[1725732928405,3.2078,2278.6,2278.3,0.43893]
[1725732928608,0.20668006,2278.5,2278.3,0.43893]
[1725732928804,0.20668006,2278.4,2278.3,0.43893]
[1725732929206,1.9955,2278.5,2278.3,0.43893]
[1725732929404,0.20667601,2278.4,2278.3,0.43893]
[1725732929712,0.20667601,2278.4,2278.3,3.64673]
[1725732929912,5.47595829,2278.9,2278.3,3.64673]
[1725732929913,2.26815829,2279.0,2278.9,0.43883]
[1725732930116,2.26815829,2279.0,2278.3,14.69396]
[1725732930117,0.20666468,2279.0,2278.8,0.43884]
[1725732930418,0.20666468,2278.9,2278.8,0.43884]
[1725732930616,0.20666468,2278.9,2278.8,0.65565062]
[1725732930916,0.20666468,2278.9,2278.8,5.04365062]
[1725732931319,3.8729,2279.3,2278.8,5.04365062]
[1725732931320,3.8729,2279.3,2279.0,0.43879]
[1725732931507,0.20668366,2279.2,2279.0,0.43879]
[1725732931811,0.20668366,2279.1,2279.0,0.43879]
[1725732932207,0.20668366,2279.2,2279.0,0.43879]
[1725732932613,0.20671387,2279.1,2278.8,0.21681062]
[1725732932810,0.20671387,2279.1,2279.0,0.43879]
[1725732933017,0.20676139,2279.1,2279.0,0.43879]
[1725732933411,0.20676139,2279.2,2279.0,0.43879]
[1725732934313,0.20676139,2279.2,2279.1,0.43879]
[1725732936322,7.0807,2279.3,2278.8,0.21449775]
[1725732936516,7.0807,2279.3,2279.2,0.43877]
[1725732936825,7.28745724,2279.3,2278.8,0.21449775]
[1725732937014,0.20676819,2279.2,2279.0,0.43879]
[1725732937214,7.0807,2279.3,2279.0,0.43879]
[1725732937412,0.20676388,2279.2,2278.9,0.43882]
[1725732937716,3.64662,2279.0,2278.7,0.43886]
[1725732938020,0.20675197,2278.9,2278.7,0.43886]
[1725732938221,1.969,2278.9,2278.7,0.43886]
[1725732938611,1.969,2278.9,2278.8,0.43884]
[1725732940223,5.0852,2279.3,2278.8,4.388]
[1725732940416,2.17576085,2279.2,2279.0,0.4388]
[1725732940618,1.969,2279.2,2279.0,0.4388]
[1725732940819,1.969,2279.2,2278.6,6.9053]
[1725732940820,1.969,2279.2,2279.1,0.43879]
[1725732946623,1.969,2279.2,2279.0,0.43879]
[1725732947216,1.969,2279.2,2279.1,0.43879]
[1725732950426,1.8774,2279.3,2278.9,1.9227]
[1725732950631,1.8774,2279.3,2279.2,0.43877]
[1725732952730,1.8774,2279.3,2279.1,0.43877]
[1725732953727,5.52395,2279.3,2279.1,0.43877]
[1725732953928,0.20675195,2279.2,2278.9,1.9227]
[1725732954232,5.0852,2279.3,2279.1,0.43879]
[1725732954432,0.20674718,2279.2,2279.1,0.43879]
[1725732955527,5.0852,2279.3,2279.2,0.43877]
[1725732955732,1.9815,2279.5,2279.4,0.43873]
[1725732955932,2.18824773,2279.5,2279.4,0.43873]
[1725732957031,0.43874,2279.4,2279.2,0.43876]
[1725732957330,0.20674773,2279.3,2279.2,0.43876]
[1725732957828,5.46022,2279.5,2279.3,0.43875]
[1725732957829,0.2067493,2279.4,2279.3,0.43875]
[1725732958034,0.20675085,2279.4,2279.3,0.43875]
[1725732958622,0.43873,2279.4,2279.2,0.43875]
[1725732958829,0.64548172,2279.4,2279.2,0.43875]
[1725732959024,3.41455172,2279.3,2279.2,0.43875]
[1725732959529,3.41455172,2279.3,2279.2,0.43877]
[1725732959927,3.85330172,2279.3,2278.9,1.9227]
[1725732960128,2.03575172,2279.2,2279.1,0.43879]
[1725732960324,2.03575172,2279.2,2278.9,0.43882]
[1725732960536,3.2078,2279.0,2278.6,2.37367]
[1725732960727,3.2078,2279.0,2278.6,2.37368]
[1725732960728,0.43885,2278.8,2278.6,2.37368]
[1725732961032,0.43885,2278.8,2278.4,0.43891]
[1725732961033,0.43886,2278.7,2278.4,0.43891]
[1725732961232,0.43886,2278.7,2278.1,4.60797]
[1725732961233,0.43893,2278.4,2278.1,4.60797]
[1725732961430,3.2078,2278.3,2277.9,0.43901]
[1725732961735,3.2078,2278.0,2277.6,6.183]
[1725732961927,5.30815829,2278.0,2277.5,0.43909]
[1725732962125,0.43903,2277.9,2277.5,0.43909]
[1725732962829,0.43904,2277.8,2277.5,0.43909]
[1725732963237,0.43903,2277.9,2277.5,0.43909]
[1725732963633,0.43903,2277.9,2277.6,0.43908]
[1725732964132,3.8411,2278.0,2277.4,3.04]
[1725732964330,3.8411,2278.0,2277.8,0.43903]
[1725732965125,3.8411,2278.0,2277.4,3.04]
[1725732965437,3.8411,2278.0,2277.7,0.43904]
[1725732966035,3.8411,2278.0,2277.8,0.43903]
[1725732966234,3.8411,2278.0,2277.9,0.43902]
[1725732966727,3.8411,2278.0,2277.9,4.82862]
[1725732967631,3.8411,2278.0,2277.9,11.92617]
[1725732967835,2.9248,2278.0,2277.9,13.02372]
[1725732968143,1.9023,2278.4,2278.3,0.43894]
[1725732968438,0.43881,2279.0,2278.1,4.30523]
[1725732968630,0.20669312,2278.9,2278.2,1.09741]
[1725732968943,0.20669312,2278.8,2278.2,1.09741]
[1725732969138,3.64659,2279.1,2278.7,0.43885]
[1725732969344,0.20670001,2279.0,2278.8,0.43884]
[1725732969544,0.20670001,2278.9,2278.8,0.43884]
[1725732969734,1.9288,2279.2,2279.0,0.43879]
[1725732969939,0.20669391,2279.1,2279.0,0.43879]
[1725732970429,3.2078,2279.4,2279.1,0.43878]
[1725732970635,0.2066943,2279.3,2279.0,0.43879]
[1725732970830,0.20670776,2279.2,2279.0,0.43879]
[1725732971037,3.2078,2279.4,2279.0,0.43879]
[1725732971347,0.20670119,2279.3,2279.0,0.43879]
[1725732971535,0.20670119,2279.2,2279.0,0.43879]
[1725732971736,3.64653,2279.4,2279.0,0.43879]
[1725732971935,0.2066984,2279.3,2279.0,0.43879]
[1725732972241,0.2066984,2279.2,2279.0,0.43879]
[1725732972445,3.64653,2279.4,2279.0,0.43879]
[1725732972634,0.20669247,2279.3,2279.0,0.43879]
[1725732972832,0.20669247,2279.2,2278.9,0.43881]
[1725732973236,0.20669247,2279.2,2278.5,4.05]
[1725732973438,0.20669247,2279.2,2279.0,0.4388]
[1725732973733,3.64654,2279.4,2279.1,0.43878]
[1725732973937,0.20669647,2279.3,2279.1,0.43878]
[1725732974143,0.20669647,2279.2,2279.1,0.43878]
[1725732975542,0.20669647,2279.2,2279.0,0.4388]
[1725732975746,0.20669647,2279.1,2279.0,0.4388]
[1725732976943,0.20669647,2279.1,2278.9,0.43882]
[1725732977247,3.64659,2279.1,2278.9,0.43882]
[1725732977548,0.2066546,2279.0,2278.9,0.43882]
[1725732978540,0.2066546,2279.0,2278.5,4.169]
[1725732978541,4.5946546,2279.0,2278.5,4.169]
[1725732978753,0.2066546,2278.9,2278.8,0.43884]
[1725732978945,2.83039084,2279.0,2278.9,0.43883]
[1725732979140,3.03704081,2279.0,2278.9,0.43883]
[1725732980550,2.47470477,2279.0,2278.9,0.43883]
[1725732980751,2.2680548,2279.0,2278.9,0.43883]
[1725732980938,2.83039084,2279.1,2279.0,0.43881]
[1725732981448,3.03705413,2279.1,2279.0,0.43881]
[1725732981846,6.24485413,2279.1,2279.0,0.43881]
[1725732982046,6.24485413,2279.1,2278.6,1.09721]
[1725732982242,2.47493245,2279.0,2278.9,0.43883]
[1725732982747,2.26826916,2279.2,2279.0,0.43881]
[1725732983049,2.26826916,2279.2,2279.1,0.43879]
[1725732983253,2.47494036,2279.2,2279.1,0.43879]
[1725732983954,0.2066712,2279.2,2279.1,0.43879]
[1725732984352,0.20667567,2279.2,2279.1,0.43879]
[1725732984545,7.42506651,2279.2,2278.5,8.47404]
[1725732984744,2.26842441,2279.0,2278.9,0.43881]
[1725732984943,0.20667567,2279.0,2278.9,0.43881]
[1725732985140,3.03706651,2279.0,2278.8,0.43883]
[1725732985350,2.47494382,2278.9,2278.8,0.43883]
[1725732985545,2.47494382,2278.9,2278.7,0.43886]
[1725732985747,2.47494382,2278.8,2278.2,9.31639]
[1725732985944,0.20667567,2278.7,2278.6,0.43887]
[1725732987060,0.43884,2278.9,2278.7,0.43886]
[1725732987361,0.20664213,2278.8,2278.7,0.43886]
[1725732988457,3.64662,2279.0,2278.8,0.43884]
[1725732988658,0.20663957,2278.9,2278.8,0.43884]
[1725732988962,0.64546957,2278.9,2278.7,0.43885]
[1725732989170,0.20663957,2278.8,2278.7,0.43885]
[1725732989364,2.26826815,2279.1,2278.6,3.2078]
[1725732989560,3.2078,2279.3,2279.2,0.43877]
[1725732989759,0.43872,2279.5,2279.2,0.43876]
[1725732989958,0.43873,2279.4,2279.1,0.66276675]
[1725732990163,3.2078,2279.6,2279.1,0.22398675]
[1725732990164,5.91476815,2279.6,2279.1,0.22398675]
[1725732990360,3.6465,2279.6,2279.3,0.43875]
[1725732991069,0.43871,2279.5,2279.2,0.43875]
[1725732991271,5.91476815,2279.6,2279.2,0.43875]
[1725732991463,3.6465,2279.6,2279.2,0.43875]
[1725732992062,3.6465,2279.6,2279.0,0.22159387]
[1725732992266,3.6465,2279.6,2279.3,0.43875]
[1725732992966,3.6465,2279.6,2279.4,1.8597]
[1725732993971,2.26826815,2279.5,2279.4,1.8597]
[1725732995665,2.70697815,2279.5,2279.4,1.8597]
[1725732995860,7.65630084,2279.5,2279.4,1.8597]
[1725732996468,7.09395239,2279.5,2279.4,1.8597]
[1725732996668,2.70675239,2279.5,2279.4,1.8597]
[1725732996964,2.26819336,2279.8,2279.4,1.8597]
[1725732997271,2.83509745,2279.9,2279.4,1.8597]
[1725732997272,2.26819336,2279.9,2279.8,0.43865]
[1725732997460,2.26819336,2280.0,2279.9,0.43863]
[1725732998155,3.27367745,2280.2,2279.9,0.43863]
[1725732998364,2.26806922,2280.1,2280.0,0.43861]
[1725732998557,2.26806922,2280.2,2279.6,3.2078]
[1725732998762,2.26806922,2280.3,2280.2,0.43857]
[1725732999061,0.43854,2280.4,2280.1,0.43858]
[1725732999265,0.43854,2280.4,2279.9,3.2078]
[1725732999569,0.43856,2280.3,2280.0,0.4386]
[1725733000168,3.46855,2280.4,2280.1,4.05779]
[1725733000371,0.43856,2280.3,2280.1,3.6192]
[1725733000662,3.03,2280.4,2280.1,3.6192]
[1725733000967,3.03,2280.4,2279.6,3.64648]
[1725733000968,0.43864,2279.9,2279.6,3.64648]
[1725733001272,0.43865,2279.8,2279.7,1.9339]
[1725733001462,3.03,2280.0,2279.7,1.9339]
[1725733001768,0.43865,2279.8,2279.7,1.9339]
[1725733001967,0.64512004,2279.8,2279.7,1.9339]
[1725733002159,5.03152004,2279.8,2279.7,1.9339]
[1725733002357,11.03152004,2279.8,2279.7,1.9339]
[1725733002561,11.03152004,2279.8,2279.4,1.8829]
[1725733002562,13.62287004,2279.8,2279.4,1.8829]
[1725733002764,13.62287004,2279.8,2279.4,3.8544]
[1725733002765,0.43871,2279.5,2279.4,3.8544]
[1725733002969,0.64518004,2279.5,2279.4,3.8544]
[1725733003869,0.43871,2279.5,2279.4,3.8544]
[1725733004063,0.64514472,2279.5,2279.4,3.8544]
[1725733004259,0.20643472,2279.5,2279.4,3.8544]
[1725733004557,0.20643472,2279.5,2279.4,4.29313]
[1725733004758,0.4387,2279.6,2279.4,4.29313]
[1725733004963,0.43868,2279.7,2279.4,4.29313]
[1725733005163,0.20644255,2279.6,2279.5,0.43871]
[1725733005664,4.59364255,2279.6,2279.4,3.8544]
[1725733005859,0.43871,2279.5,2279.4,1.9715]